lending/lending_fUSD_20251020
["ID","MTS","AMOUNT","RATE_DAILY","PERIOD"]
[391884322,1760951454767,-500.0,0.00033698,8]
[391884323,1760951454776,-1020.43,0.00033698,8]
[391884324,1760951454785,-856.5,0.00033698,8]
[391884325,1760951454794,-500.0,0.00033698,8]
[391884326,1760951454803,-500.0,0.00033698,8]
[391884327,1760951454812,-858.39,0.00033698,8]
[391884328,1760951454821,-500.0,0.00033698,8]
[391884329,1760951454830,-2117.75,0.00033698,4]
[391884330,1760951454839,-500.0,0.00033698,8]
[391884331,1760951454848,-1170.23,0.00033698,8]
[391884332,1760951454857,-500.0,0.00033698,8]
[391884333,1760951454867,-500.0,0.00033698,8]
[391884334,1760951454876,-500.0,0.00033698,8]
[391884335,1760951454885,-3000.05,0.00033698,2]
[391884336,1760951454895,-500.0,0.00033698,8]
[391884337,1760951454904,-500.0,0.00033698,8]
[391884338,1760951454913,-500.0,0.00033698,8]
[391884339,1760951454923,-567.65,0.00033698,8]
[391884340,1760951454932,-500.0,0.00033698,2]
[391884341,1760951454942,-618.41,0.00033698,2]
[391884342,1760951454951,-662.87,0.00033698,8]
[391884343,1760951454960,-300.0,0.00033698,8]
[391884344,1760951454969,-10000.0,0.000337,2]
[391884345,1760951454978,-175.07299726,0.000337,120]
[391884346,1760951454987,-198.23748035,0.000337,120]
[391884347,1760951454996,-205.44699729,0.000337,120]
[391884348,1760951455005,-188.04956781,0.000337,120]
[391884349,1760951455014,-1967.84210976,0.000337,120]
[391884350,1760951455023,-267.41922561,0.000337,120]
[391884351,1760951455032,-1496.99346793,0.000337,120]
[391884352,1760951455042,-580.44209519,0.000337,120]
[391884353,1760951455051,-1825.71041633,0.000337,120]
[391884354,1760951455061,-10091.11285639,0.000337,120]
[391884355,1760951455070,-300.0,0.00033799,10]
[391884356,1760951455079,-58770.08530291,0.000338,2]
[391884357,1760951455089,-2449.64262931,0.0003388,2]
[391884358,1760951455098,-500.0,0.00033972,2]
[391884359,1760951455107,-3086.73,0.00033972,8]
[391884360,1760951455117,-500.0,0.00033972,8]
[391884361,1760951455126,-500.0,0.00033972,8]
[391884362,1760951455136,-194.51925621,0.00033972,8]
[391884363,1760951455146,-602.87,0.00033972,8]
[391884364,1760951455155,-500.0,0.00033972,8]
[391884365,1760951455164,-639.43,0.00033972,8]
[391884366,1760951455174,-465.31959997,0.00033972,8]
[391884367,1760951455183,-586.04843935,0.00033972,8]
[391884368,1760951455192,-500.0,0.00033972,8]
[391884369,1760951455201,-603.91,0.00033972,8]
[391884370,1760951455210,-833.59,0.00033972,8]
[391884371,1760951455220,-500.0,0.00033972,8]
[391884372,1760951455229,-734.96,0.00033972,8]
[391884373,1760951455239,-500.0,0.00033972,8]
[391884374,1760951455248,-692.04,0.00033972,8]
[391884375,1760951455257,-500.0,0.00033972,8]
[391884376,1760951455266,-300.0,0.00033972,2]
[391884377,1760951455276,-692.74,0.00033972,8]
[391884378,1760951455286,-500.0,0.00033972,8]
[391884379,1760951455295,-696.31,0.00033972,8]
[391884380,1760951455305,-500.0,0.00033972,8]
[391884381,1760951455314,-500.0,0.00033972,8]
[391884382,1760951455323,-500.0,0.00033972,8]
[391884383,1760951455332,-500.0,0.00033972,8]
[391884384,1760951455341,-500.0,0.00033972,8]
[391884385,1760951455350,-210.87771541,0.00033972,8]
[391884386,1760951455359,-500.0,0.00033972,8]
[391884387,1760951455369,-500.0,0.00033972,8]
[391884388,1760951455378,-500.0,0.00033972,8]
[391884389,1760951455388,-500.0,0.00033972,8]
[391884390,1760951455397,-500.0,0.00033972,8]
[391884391,1760951455407,-646.45817049,0.00033972,8]
[391884392,1760951455416,-500.0,0.00033972,8]
[391884393,1760951455425,-500.0,0.00033972,8]
[391884394,1760951455434,-500.0,0.00033972,8]
[391884395,1760951455443,-500.0,0.00033972,8]
[391884396,1760951455452,-527.69,0.00033972,8]
[391884397,1760951455461,-500.0,0.00033972,8]
[391884398,1760951455475,-500.0,0.00033972,8]
[391884399,1760951455484,-500.0,0.00033972,8]
[391884400,1760951455493,-500.0,0.00033972,8]
[391884401,1760951455503,-500.0,0.00033972,8]
[391884402,1760951455514,-500.0,0.00033972,8]
[391884403,1760951455523,-500.0,0.00033972,8]
[391884404,1760951455533,-605.14,0.00033972,8]
[391884405,1760951455543,-500.0,0.00033972,8]
[391884406,1760951455553,-500.0,0.00033972,8]
[391884407,1760951455562,-500.0,0.00033972,2]
[391884408,1760951455571,-923.04,0.00033972,8]
[391884409,1760951455581,-500.0,0.00033972,8]
[391884410,1760951455590,-1000.0,0.00033972,8]
[391884411,1760951455599,-688.53,0.00033972,8]
[391884412,1760951455609,-549.31,0.00033972,8]
[391884413,1760951455618,-183.4305337,0.00033972,8]
[391884414,1760951455627,-670.33,0.00033972,8]
[391884415,1760951455637,-301.17829229,0.00033972,2]
[391884416,1760951455645,-500.0,0.00033972,8]
[391884417,1760951455654,-500.0,0.00033972,8]
[391884418,1760951455664,-523.06,0.00033972,8]
[391884419,1760951455673,-500.0,0.00033972,8]
[391884420,1760951455682,-500.0,0.00033972,8]
[391884421,1760951455692,-500.0,0.00033972,8]
[391884422,1760951455702,-1473.39,0.00033972,8]
[391884423,1760951455711,-552.47,0.00033972,8]
[391884424,1760951455721,-545.02,0.00033972,8]
[391884425,1760951455730,-206.87130561,0.00033972,8]
[391884426,1760951455739,-894.98,0.00033972,8]
[391884427,1760951455748,-500.0,0.00033972,8]
[391884428,1760951455758,-554.65,0.00033972,8]
[391884429,1760951455767,-500.0,0.00033972,8]
[391884430,1760951455776,-689.48,0.00033972,8]
[391884431,1760951455785,-500.0,0.00033972,8]
[391884432,1760951455794,-1020.43,0.00033972,8]
[391884433,1760951455803,-856.5,0.00033972,8]
[391884434,1760951455812,-3327.27,0.00033972,120]
[391884435,1760951455821,-500.0,0.00033972,8]
[391884436,1760951455829,-500.0,0.00033972,8]
[391884437,1760951455839,-858.39,0.00033972,8]
[391884438,1760951455848,-200.51150722,0.00033972,8]
[391884439,1760951455857,-2117.75,0.00033972,4]
[391884440,1760951455866,-500.0,0.00033972,8]
[391884441,1760951455875,-1170.23,0.00033972,8]
[391884442,1760951455884,-500.0,0.00033972,8]
[391884443,1760951455893,-500.0,0.00033972,8]
[391884444,1760951455902,-500.0,0.00033972,8]
[391884445,1760951455911,-3000.05,0.00033972,2]
[391884446,1760951455920,-500.0,0.00033972,8]
[391884447,1760951455929,-500.0,0.00033972,8]
[391884448,1760951455939,-500.0,0.00033972,8]
[391884449,1760951455948,-567.65,0.00033972,8]
[391884450,1760951455958,-500.0,0.00033972,2]
[391884451,1760951455967,-618.41,0.00033972,2]
[391884452,1760951455976,-662.87,0.00033972,8]
[391884453,1760951455985,-300.0,0.00033972,8]
[391884454,1760951455995,-1029.4340199,0.00033973,30]
[391884455,1760951456005,-976.96,0.00034,2]
[391884456,1760951456014,-64083.30494397,0.00034,7]
[391884462,1760951600654,259.033001,0.00026879,120]
[391884588,1760952020514,376.44,0.00013699,2]
[391884633,1760952330471,578.08795996,0.00034299,30]
[391884649,1760952472067,300.0,0.00013,15]
[391884652,1760952477632,88977.84613082,0.00015,2]
[391884771,1760952631445,-150.0,0.00017382,2]
[391884772,1760952631455,-150.58008161,0.00017505,2]
[391884773,1760952631499,-0.41991839,0.00017505,2]
[391884774,1760952631508,-151.0,0.00017547,2]
[391884775,1760952631518,-151.0,0.00017595,2]
[391884776,1760952631527,-151.0,0.00017601,2]
[391884777,1760952631536,-1200.0,0.00018341,2]
[391884778,1760952631545,-200.0,0.00018342,2]
[391884779,1760952631555,-204.0900688,0.00018342,2]
[391884780,1760952631564,-151.0,0.00018342,2]
[391884781,1760952631573,-151.0,0.00018342,2]
[391884782,1760952631583,-151.0,0.00018342,2]
[391884783,1760952631592,-151.0,0.00018342,2]
[391884784,1760952631601,-139.6933001,0.00018342,2]
[391884785,1760952631613,-11.3066999,0.00018342,2]
[391884786,1760952631622,-151.0,0.00018342,2]
[391884787,1760952631630,-151.0,0.00018342,2]
[391884788,1760952631639,-151.0,0.00018342,2]
[391884789,1760952631649,-151.0,0.00018342,2]
[391884790,1760952631657,-151.0,0.00018342,2]
[391884791,1760952631667,-151.0,0.00018342,2]
[391884792,1760952631676,-151.0,0.00018342,2]
[391884793,1760952631685,-151.0,0.00018342,2]
[391884794,1760952631695,-151.0,0.00018342,2]
[391884795,1760952631704,-200.0,0.00018342,2]
[391884796,1760952631714,-151.0,0.00018342,2]
[391884797,1760952631723,-151.0,0.00018342,2]
[391884798,1760952631732,-151.0,0.00018342,2]
[391884799,1760952631741,-151.0,0.00018342,2]
[391884800,1760952631750,-151.0,0.00018342,2]
[391884801,1760952631760,-151.0,0.00018342,2]
[391884802,1760952631769,-151.0,0.00018342,2]
[391884803,1760952631778,-151.0,0.00018342,2]
[391884804,1760952631787,-151.0,0.00018342,2]
[391884805,1760952631796,-151.0,0.00018342,2]
[391884806,1760952631805,-151.0,0.00018342,2]
[391884807,1760952631813,-500.0,0.00018353,2]
[391884808,1760952631823,-500.0,0.00018353,2]
[391884809,1760952631832,-500.0,0.00018353,2]
[391884810,1760952631999,-403.63237329,0.00018353,2]
[391884811,1760952632009,-605.0,0.00018354,2]
[391884812,1760952632019,-1311.0,0.00018354,2]
[391884813,1760952632029,-572.0,0.00018354,2]
[391884814,1760952632038,-817.0,0.00018354,2]
[391884815,1760952632048,-786.0,0.00018354,2]
[391884816,1760952632057,-1380.02300206,0.00018354,2]
[391884818,1760952632069,-670.97699794,0.00018354,2]
[391884820,1760952632078,-904.11881194,0.00018354,2]
[391884821,1760952632088,-363.88118806,0.00018354,2]
[391884822,1760952632097,-200.02664765,0.00019121,2]
[391884823,1760952632108,-406.50486368,0.00019121,2]
[391884824,1760952632117,-164.7994503,0.00019914,7]
[391884825,1760952632127,-171.51089007,0.00020104,2]
[391884826,1760952632138,-45.48910993,0.00020104,2]
[391884827,1760952632147,-376.44,0.00020187,2]
[391884828,1760952632157,-395.39993497,0.0002085,2]
[391884834,1760952637391,-304.26,0.00018354,2]
[391884835,1760952637403,-947.87,0.00018354,2]
[391884837,1760952637603,-2157.87,0.00018354,2]
[391884839,1760952637613,-336.00026839,0.00020746,2]
[391884840,1760952637624,-36174.48382517,0.0002085,2]
[391884843,1760952637634,-322.6107,0.00020999,2]
[391884844,1760952637644,-500.0,0.00020999,2]
[391884846,1760952637653,-500.0,0.00020999,2]
[391884848,1760952637662,-500.0,0.00020999,2]
[391884850,1760952637671,-500.0,0.00020999,2]
[391884852,1760952637680,-500.0,0.00020999,2]
[391884854,1760952637689,-500.0,0.00020999,2]
[391884856,1760952637698,-500.0,0.00020999,2]
[391884858,1760952637707,-250.0,0.00020999,2]
[391884860,1760952637716,-500.0,0.00020999,2]
[391884862,1760952637726,-500.0,0.00020999,2]
[391884864,1760952637735,-250.0,0.00020999,2]
[391884866,1760952637744,-500.0,0.00020999,2]
[391884868,1760952637753,-500.0,0.00020999,2]
[391884870,1760952637762,-250.0,0.00020999,2]
[391884872,1760952637771,-500.0,0.00020999,2]
[391884874,1760952637780,-500.0,0.00020999,2]
[391884876,1760952637789,-250.0,0.00020999,2]
[391884878,1760952637799,-500.0,0.00020999,2]
[391884880,1760952637808,-500.0,0.00020999,2]
[391884882,1760952637817,-250.0,0.00020999,2]
[391884884,1760952637826,-500.0,0.00020999,2]
[391884886,1760952637835,-500.0,0.00020999,2]
[391884888,1760952637844,-250.0,0.00020999,2]
[391884890,1760952637853,-500.0,0.00020999,2]
[391884892,1760952637862,-500.0,0.00020999,2]
[391884893,1760952637873,-250.0,0.00020999,2]
[391884895,1760952637882,-500.0,0.00020999,2]
[391884898,1760952637892,-250.0,0.00020999,2]
[391884900,1760952637902,-500.0,0.00020999,2]
[391884901,1760952637911,-250.0,0.00020999,2]
[391884904,1760952637920,-328.50975524,0.00020999,2]
[391884906,1760952637932,-171.49024476,0.00020999,2]
[391884908,1760952637942,-250.0,0.00020999,2]
[391884910,1760952637952,-250.0,0.00020999,2]
[391884912,1760952637961,-160.05545038,0.0002185,2]
[391884914,1760952637970,-160.05545442,0.0002185,2]
[391884916,1760952637979,-281.05903844,0.0002185,2]
[391885058,1760952639455,-211.51470814,0.00020849,2]
[391885060,1760952639465,-218.94096156,0.0002185,2]
[391885061,1760952639474,-500.0,0.0002185,2]
[391885063,1760952639484,-345.68088519,0.00022398,2]
[391885065,1760952639493,-475.93135235,0.00023507,2]
[391885067,1760952639502,-150.0,0.00024426,2]
[391885069,1760952639511,-150.0,0.00024426,2]
[391885071,1760952639520,-150.0,0.00024426,2]
[391885073,1760952639529,-500.0,0.00024426,2]
[391885075,1760952639539,-150.0,0.00024426,2]
[391885077,1760952639548,-150.0,0.00024426,2]
[391885079,1760952639558,-150.0,0.00024426,2]
[391885081,1760952639567,-150.0,0.00024481,2]
[391885083,1760952639576,-150.0,0.00024481,2]
[391885085,1760952639586,-500.0,0.00024481,2]
[391885087,1760952639595,-150.0,0.00024481,2]
[391885089,1760952639605,-150.0,0.00024481,2]
[391885091,1760952639614,-150.0,0.00024536,2]
[391885093,1760952639623,-500.0,0.00024536,2]
[391885095,1760952639632,-150.0,0.00024536,2]
[391885097,1760952639642,-150.0,0.00024536,2]
[391885099,1760952639651,-150.0,0.0002459,2]
[391885101,1760952639661,-500.0,0.0002459,2]
[391885103,1760952639671,-150.0,0.0002459,2]
[391885105,1760952639681,-150.0,0.0002459,2]
[391885107,1760952639691,-150.0,0.00024645,2]
[391885109,1760952639700,-1000.01,0.00025,2]
[391885111,1760952639709,-227.26715691,0.00025,7]
[391885113,1760952639718,-2000.0,0.000255,2]
[391885115,1760952639727,-1000.01,0.000255,2]
[391885117,1760952639736,-322.49,0.00025871,2]
[391885119,1760952639746,-1000.86856511,0.00026,7]
[391885121,1760952639754,-376.44,0.00026676,2]
[391885123,1760952639763,-600.0,0.00027397,2]
[391885125,1760952639773,-175.495,0.00028151,18]
[391885127,1760952639783,-166.66,0.00028192,30]
[391885129,1760952639792,-154.2,0.00028515,30]
[391885131,1760952639802,-1000.0,0.00028647,2]
[391885133,1760952639811,-166.66,0.00028785,30]
[391885135,1760952639821,-2000.0,0.000292,2]
[391885137,1760952639830,-166.66,0.00029379,30]
[391885139,1760952639839,-5000.0,0.00029762,2]
[391885141,1760952639848,-166.66,0.00029972,30]
[391885143,1760952639858,-1474.23,0.00030296,2]
[391885145,1760952639868,-166.66,0.00030566,30]
[391885147,1760952639878,-150.0,0.00030568,2]
[391885149,1760952639887,-150.0,0.00030568,2]
[391885151,1760952639897,-500.0,0.00030568,2]
[391885153,1760952639907,-150.0,0.00030568,2]
[391885155,1760952639916,-500.0,0.00030568,2]
[391885157,1760952639925,-151.42164835,0.00030568,2]
[391885159,1760952639935,-665.43,0.00030569,2]
[391885161,1760952639944,-150.0,0.00030623,2]
[391885163,1760952639955,-150.0,0.00030623,2]
[391885165,1760952639965,-500.0,0.00030623,2]
[391885167,1760952639975,-150.0,0.00030623,2]
[391885169,1760952639985,-500.0,0.00030623,2]
[391885170,1760952639994,-1000.0,0.00030641,2]
[391885171,1760952640003,-150.0,0.00030678,2]
[391885172,1760952640012,-150.0,0.00030678,2]
[391885173,1760952640022,-500.0,0.00030678,2]
[391885174,1760952640031,-150.0,0.00030678,2]
[391885175,1760952640043,-546.139,0.00030678,2]
[391885176,1760952640053,-666.0,0.00030681,3]
[391885177,1760952640063,-202.87028618,0.00030732,2]
[391885178,1760952640072,-176.43867561,0.00030732,2]
[391885179,1760952640081,-292.6,0.00030846,2]
[391885181,1760952640090,-152.0,0.00031111,3]
[391885182,1760952640099,-166.66,0.00031159,30]
[391885184,1760952640109,-1000.0,0.0003179,2]
[391885187,1760952640119,-984.49,0.00031802,2]
[391885188,1760952640129,-300.0,0.00032072,2]
[391885190,1760952640139,-1000.0,0.00032228,2]
[391885193,1760952640149,-569.44083486,0.00032876,8]
[391885195,1760952640158,-150.0,0.00032876,8]
[391885196,1760952640167,-150.0,0.00032876,8]
[391885198,1760952640176,-150.0,0.00032876,8]
[391885200,1760952640185,-223.86997446,0.00032876,8]
[391885202,1760952640194,-150.0,0.00032876,8]
[391885204,1760952640203,-150.0,0.00032876,8]
[391885207,1760952640213,-150.0,0.00032876,8]
[391885209,1760952640222,-150.0,0.00032876,8]
[391885211,1760952640236,-150.80743741,0.00032876,8]
[391885212,1760952640245,-150.49602682,0.00032876,8]
[391885215,1760952640254,-150.71986668,0.00032876,8]
[391885216,1760952640263,-150.0,0.00032876,8]
[391885218,1760952640273,-500.0,0.00032876,8]
[391885220,1760952640282,-201.68175415,0.00032876,8]
[391885222,1760952640290,-202.16029931,0.00032876,8]
[391885224,1760952640301,-150.0,0.00032876,8]
[391885226,1760952640313,-151.09462681,0.00032876,8]
[391885229,1760952640323,-192.5778253,0.00032876,8]
[391885230,1760952640332,-500.0,0.00032876,8]
[391885232,1760952640342,-500.0,0.00032876,8]
[391885234,1760952640351,-500.0,0.00032876,8]
[391885236,1760952640361,-500.0,0.00032876,8]
[391885238,1760952640370,-500.0,0.00032876,8]
[391885240,1760952640379,-500.0,0.00032876,8]
[391885242,1760952640388,-352.86328229,0.00032876,8]
[391885244,1760952640397,-2000.0,0.000329,2]
[391885246,1760952640406,-150.0,0.00032931,8]
[391885248,1760952640415,-150.0,0.00032931,8]
[391885250,1760952640425,-150.0,0.00032931,8]
[391885252,1760952640434,-150.0,0.00032931,8]
[391885254,1760952640443,-150.0,0.00032931,8]
[391885256,1760952640453,-202.13446032,0.00032931,8]
[391885258,1760952640462,-1000.0,0.00032939,2]
[391885261,1760952640471,-200.0,0.00032986,8]
[391885262,1760952640480,-202.12798793,0.00032986,8]
[391885265,1760952640491,-202.81903344,0.00032986,8]
[391885267,1760952640500,-202.21321272,0.00032986,8]
[391885269,1760952640509,-157.0,0.00033,14]
[391885271,1760952640518,-500.0,0.0003315,8]
[391885273,1760952640527,-500.0,0.0003315,8]
[391885275,1760952640536,-500.0,0.0003315,8]
[391885277,1760952640546,-500.0,0.0003315,8]
[391885279,1760952640555,-500.0,0.0003315,8]
[391885281,1760952640563,-500.0,0.0003315,8]
[391885283,1760952640572,-500.0,0.0003315,8]
[391885285,1760952640582,-376.44,0.00033165,2]
[391885287,1760952640591,-4951.97294358,0.00033324,2]
[391885289,1760952640601,-500.0,0.00033325,5]
[391885291,1760952640610,-500.0,0.00033424,8]
[391885293,1760952640621,-500.0,0.00033424,8]
[391885295,1760952640631,-500.0,0.00033424,8]
[391885297,1760952640641,-500.0,0.00033424,8]
[391885299,1760952640649,-500.0,0.00033424,8]
[391885301,1760952640658,-500.0,0.00033424,8]
[391885303,1760952640667,-500.0,0.00033424,8]
[391885305,1760952640676,-1568.09819354,0.00033424,2]
[391885307,1760952640685,-176.18,0.0003357,2]
[391885309,1760952640695,-546.84,0.0003357,2]
[391885311,1760952640704,-301.24,0.0003357,2]
[391885313,1760952640713,-413.94,0.0003357,2]
[391885315,1760952640722,-176.18,0.0003357,2]
[391885317,1760952640731,-413.94,0.0003357,2]
[391885319,1760952640740,-176.18,0.0003357,2]
[391885321,1760952640749,-413.94,0.0003357,2]
[391885323,1760952640758,-355.56,0.0003357,2]
[391885325,1760952640767,-827.67,0.0003357,2]
[391885327,1760952640776,-413.94,0.0003357,2]
[391885329,1760952640785,-500.0,0.00033698,8]
[391885331,1760952640794,-500.0,0.00033698,8]
[391885333,1760952640803,-500.0,0.00033698,8]
[391885335,1760952640812,-351.71497211,0.00033698,8]
[391885337,1760952640821,-500.0,0.00033698,8]
[391885339,1760952640831,-500.0,0.00033698,8]
[391885341,1760952640840,-500.0,0.00033698,8]
[391885343,1760952640849,-464.35367616,0.000337,120]
[391885345,1760952640858,-10773.75630452,0.000337,120]
[391885347,1760952640867,-198.23748034,0.000337,120]
[391885349,1760952640877,-213.93538049,0.000337,120]
[391885351,1760952640886,-188.04956781,0.000337,120]
[391885353,1760952640895,-164.35759783,0.000337,120]
[391885354,1760952640904,-1643.1393747,0.000337,120]
[391885356,1760952640913,-1197.59477435,0.000337,120]
[391885357,1760952640922,-1574.27368781,0.000337,120]
[391885359,1760952640931,-2310.7678869,0.000338,2]
[391885361,1760952640940,-558.35556572,0.000338,2]
[391885362,1760952640950,-5000.0,0.00033872,2]
[391885364,1760952640960,-422.09173801,0.00033888,7]
[391885365,1760952640969,-194.46101866,0.00033888,7]
[391885367,1760952640978,-581.84,0.00033889,8]
[391885368,1760952640987,-500.0,0.00033889,8]
[391885370,1760952640996,-547.86,0.00033889,8]
[391885372,1760952641006,-548.41,0.00033889,8]
[391885373,1760952641014,-551.24,0.00033889,8]
[391885375,1760952641023,-459.50512681,0.00033889,8]
[391885376,1760952641032,-500.0,0.00033889,8]
[391885378,1760952641042,-524.78,0.00033889,8]
[391885380,1760952641050,-541.16887669,0.00033889,8]
[391885381,1760952641059,-500.0,0.00033889,8]
[391885383,1760952641069,-500.0,0.00033889,8]
[391885384,1760952641078,-708.52,0.00033889,8]
[391885386,1760952641087,-545.84,0.00033889,8]
[391885388,1760952641097,-678.07,0.00033889,8]
[391885389,1760952641106,-500.0,0.00033889,8]
[391885391,1760952641116,-500.0,0.00033889,8]
[391885392,1760952641125,-926.43,0.00033889,8]
[391885394,1760952641134,-500.0,0.00033889,8]
[391885396,1760952641143,-500.0,0.00033889,8]
[391885397,1760952641152,-500.0,0.00033889,8]
[391885399,1760952641161,-308.39305707,0.00033889,8]
[391885400,1760952641170,-807.84,0.00033889,8]
[391885402,1760952641179,-500.0,0.00033889,8]
[391885404,1760952641188,-500.0,0.00033889,8]
[391885406,1760952641197,-500.0,0.00033889,8]
[391885407,1760952641206,-500.0,0.00033889,2]
[391885409,1760952641215,-26540.64419165,0.0003389,2]
[391885420,1760952641343,-13098.97083177,0.0003389,2]
[391885422,1760952641354,-325.70091321,0.0003389,2]
[391885423,1760952641365,-4827.5317327,0.0003389,2]
[391885425,1760952641376,-500.0,0.0003389,2]
[391885427,1760952641386,-796.91366228,0.0003389,2]
[391885463,1760952641845,-22029.67446769,0.0003389,2]
[391885464,1760952641855,-500.0,0.00033899,8]
[391885466,1760952641864,-500.0,0.00033899,8]
[391885468,1760952641873,-500.0,0.00033899,8]
[391885470,1760952641883,-545.09,0.00033899,8]
[391885471,1760952641892,-730.74,0.00033899,8]
[391885473,1760952641901,-795.74363365,0.00033899,8]
[391885475,1760952641910,-500.0,0.00033899,8]
[391885476,1760952641919,-530.68,0.00033899,8]
[391885478,1760952641928,-1166.43,0.00033899,8]
[391885480,1760952641938,-500.0,0.00033899,8]
[391885481,1760952641946,-500.0,0.00033899,8]
[391885483,1760952641955,-500.0,0.00033899,8]
[391885485,1760952641964,-500.0,0.00033899,8]
[391885487,1760952641973,-500.0,0.00033899,8]
[391885489,1760952641983,-500.0,0.00033899,8]
[391885491,1760952641992,-679.56,0.00033899,8]
[391885496,1760952642127,-1676.55,0.00033899,4]
[391885497,1760952642136,-2375.04,0.00033899,2]
[391885498,1760952642146,-500.0,0.00033899,8]
[391885499,1760952642154,-500.0,0.00033899,8]
[391885500,1760952642163,-242.7137639,0.00033899,8]
[391885501,1760952642172,-1741.35086297,0.000339,2]
[391885502,1760952642183,-9104.35848126,0.000339,2]
[391885503,1760952642194,-406.19,0.000339,2]
[391885504,1760952642204,-10409.9999995,0.000339,2]
[391885558,1760952642742,-157805.62245627,0.000339,2]
[391885560,1760952642751,-1000.0,0.000339,2]
[391885562,1760952642761,-4951.97294349,0.00033926,2]
[391885564,1760952642770,-500.0,0.00033972,8]
[391885566,1760952642779,-500.0,0.00033972,8]
[391885567,1760952642789,-500.0,0.00033972,8]
[391885570,1760952642798,-500.0,0.00033972,8]
[391885572,1760952642808,-500.0,0.00033972,8]
[391885574,1760952642817,-500.0,0.00033972,8]
[391885576,1760952642826,-22706.4785998,0.00033979,2]
[391885578,1760952642836,-500.0,0.00033989,8]
[391885580,1760952642846,-300.0,0.00033989,2]
[391885582,1760952642855,-500.0,0.00033989,8]
[391885584,1760952642865,-500.0,0.00033989,8]
[391885586,1760952642875,-500.0,0.00033989,8]
[391885588,1760952642885,-500.0,0.00033989,8]
[391885590,1760952642895,-500.0,0.00033989,8]
[391885592,1760952642904,-500.0,0.00033989,8]
[391885594,1760952642913,-500.0,0.00033989,8]
[391885596,1760952642923,-500.0,0.00033989,8]
[391885598,1760952642932,-517.69124187,0.00033989,8]
[391885600,1760952642941,-500.0,0.00033989,8]
[391885602,1760952642950,-170.7192922,0.00033989,8]
[391885604,1760952642959,-500.0,0.00033989,8]
[391885606,1760952642968,-500.0,0.00033989,8]
[391885608,1760952642978,-500.0,0.00033989,8]
[391885610,1760952642987,-500.0,0.00033989,8]
[391885612,1760952642996,-500.0,0.00033989,2]
[391885614,1760952643005,-300.0,0.00033989,8]
[391885616,1760952643014,-500.0,0.00033989,2]
[391885618,1760952643023,-2443.66,0.00033989,8]
[391885620,1760952643032,-500.0,0.00033989,8]
[391885622,1760952643041,-500.0,0.00033989,8]
[391885624,1760952643050,-500.0,0.00033989,8]
[391885626,1760952643059,-500.0,0.00033989,8]
[391885628,1760952643068,-506.21,0.00033989,8]
[391885630,1760952643077,-500.0,0.00033989,8]
[391885632,1760952643087,-500.0,0.00033989,8]
[391885634,1760952643096,-500.0,0.00033989,8]
[391885636,1760952643105,-3054.224983,0.0003399,2]
[391885638,1760952643115,-11166.6403997,0.0003399,2]